bitfinex/quotes_ETHUSD_20250424
["timestamp","ask_amount","ask_price","bid_price","bid_amount"]
[1745510943137,3.793,1765.5,1765.1,5.66520699]
[1745510943322,3.793,1765.5,1765.2,5.66480449]
[1745510943523,0.7549,1765.8,1765.4,11.37858241]
[1745510943747,3.7549,1765.8,1765.4,5.71421202]
[1745510943948,9.41807313,1765.8,1765.4,5.71421202]
[1745510944251,5.66354323,1765.7,1765.3,5.7145525]
[1745510944421,5.66354323,1765.7,1765.3,12.05165137]
[1745510944754,5.66354323,1765.7,1765.2,5.66489006]
[1745510944945,0.8123,1765.3,1764.9,5.71577058]
[1745510945145,6.47706324,1765.3,1764.9,11.38160893]
[1745510945348,5.66541559,1765.1,1764.7,5.71637133]
[1745510945545,8.66518618,1765.2,1764.8,5.66634129]
[1745510945860,10.1794282,1765.2,1764.8,5.66634129]
[1745510948621,4.51424202,1765.2,1764.8,5.66620665]
[1745510948817,10.17955931,1765.2,1764.7,5.71650111]
[1745510949061,6.45326899,1765.0,1764.5,10.72519851]
[1745510949246,5.66614093,1764.9,1764.5,16.39234522]
[1745510949447,6.45326899,1765.0,1764.6,5.66695359]
[1745510949642,6.45326899,1765.0,1764.6,11.33373375]
[1745510949848,6.45326899,1765.0,1764.6,5.66678016]
[1745510950147,5.66606185,1764.9,1764.6,5.66678016]
[1745510950767,6.45326899,1765.0,1764.6,5.66678016]
[1745510950937,0.7873,1765.0,1764.7,5.66664515]
[1745510951538,5.6660995,1764.9,1764.6,5.66678016]
[1745510951944,6.45332325,1765.0,1764.6,5.66678016]
[1745510952150,5.66722689,1764.6,1764.2,10.72610544]
[1745510952467,0.8057,1764.6,1764.3,5.6678115]
[1745510952636,3.0,1764.7,1764.4,5.66744328]
[1745510953067,8.66670054,1764.7,1764.4,5.66744328]
[1745510953867,8.66670054,1764.7,1764.3,11.33559995]
[1745510954246,8.66670054,1764.7,1764.3,5.66775094]
[1745510954466,5.66789954,1764.4,1763.9,0.05]
[1745510954662,6.49692112,1764.6,1763.9,5.71901388]
[1745510954663,6.49809652,1764.3,1763.9,5.71901388]
[1745510954963,5.66783521,1764.4,1764.0,5.66890868]
[1745510955169,0.8299,1764.5,1764.0,5.66890868]
[1745510955465,5.66779443,1764.4,1764.0,5.66890868]
[1745510955626,5.66800155,1764.3,1764.0,5.66890868]
[1745510955829,5.66779443,1764.4,1764.0,5.66890868]
[1745510956053,5.66779443,1764.4,1764.0,5.66870403]
[1745510956353,8.66769707,1764.4,1764.0,5.6686947]
[1745510957445,5.6680014,1764.3,1764.0,5.6686947]
[1745510957742,5.66839377,1764.2,1763.9,0.05]
[1745510958361,8.66784512,1764.4,1764.0,5.66876953]
[1745510958526,14.33575942,1764.4,1764.0,5.66876953]
[1745510958730,14.3357317,1764.4,1764.0,5.66873552]
[1745510958931,5.66801889,1764.3,1764.0,5.66873552]
[1745510959189,8.66784512,1764.4,1764.0,11.3374465]
[1745510959342,3.0,1764.4,1764.2,5.66811341]
[1745510959682,3.0,1764.6,1764.3,5.66787333]
[1745510960550,3.0,1764.6,1764.3,5.66786862]
[1745510960864,3.0,1764.6,1764.3,5.66774303]
[1745510961028,3.0,1764.6,1764.3,6.23951733]
[1745510962635,8.66705842,1764.6,1764.3,0.5717743]
[1745510963057,11.46990845,1764.7,1764.4,5.7175194]
[1745510963058,3.0,1764.7,1764.4,5.7175194]
[1745510963261,3.0,1764.7,1764.4,5.7175348]
[1745510963861,8.66673072,1764.7,1764.4,5.7175348]
[1745510964060,5.66701682,1764.6,1764.4,0.05]
[1745510964748,5.66748537,1764.5,1764.3,0.05]
[1745510964948,5.66748537,1764.5,1764.1,5.71845557]
[1745510965148,5.66767199,1764.4,1764.1,5.71845557]
[1745510965348,5.66767199,1764.4,1764.1,0.05]
[1745510965839,5.66806728,1764.3,1764.1,0.05]
[1745510966172,11.33708314,1764.2,1763.9,0.05]
[1745510966550,5.66851192,1764.2,1763.9,0.05]
[1745510966734,7.62374147,1764.3,1763.9,5.71912514]
[1745510966956,5.66836135,1764.2,1763.9,5.71912514]
[1745510967398,5.66836135,1764.2,1763.9,0.05]
[1745510967557,5.66948443,1763.9,1763.5,5.72042787]
[1745510967757,0.8318,1763.9,1763.5,5.72036175]
[1745510967958,6.50122703,1763.9,1763.5,5.72036175]
[1745510968152,0.8318,1763.9,1763.6,5.67005994]
[1745510968389,6.42965976,1764.0,1763.6,11.3400475]
[1745510968596,6.42965976,1764.0,1763.6,5.66998756]
[1745510968784,6.42972759,1764.0,1763.6,5.67011744]
[1745510968957,6.42972759,1764.0,1763.8,5.66955498]
[1745510968958,0.7606,1764.0,1763.8,5.66955498]
[1745510969297,0.7606,1764.0,1763.7,5.66985041]
[1745510969503,6.42954763,1764.0,1763.7,5.66985041]
[1745510969684,0.7606,1764.0,1763.7,5.66985041]
[1745510970371,0.7606,1764.0,1763.6,5.67021486]
[1745510970372,6.42963338,1764.0,1763.6,11.34026954]
[1745510970574,6.42963338,1764.0,1763.6,6.80902918]
[1745510970900,6.42964902,1764.0,1763.6,12.4790504]
[1745510971188,10.67679785,1764.1,1763.7,5.66981891]
[1745510971391,0.8163,1764.2,1763.8,5.71936827]
[1745510971599,5.6678174,1764.4,1763.9,5.66904632]
[1745510971760,0.8163,1764.4,1764.1,5.66847112]
[1745510971969,0.8163,1764.4,1764.1,5.71847112]
[1745510973228,0.8163,1764.4,1764.1,5.7184177]
[1745510973409,5.009,1764.6,1764.1,0.05]
[1745510973611,5.66646105,1764.8,1764.4,5.66743444]
[1745510973903,13.19126125,1764.9,1764.5,5.66706641]
[1745510974061,11.49146125,1764.9,1764.5,11.33421211]
[1745510974259,5.8253,1764.9,1764.5,5.66706641]
[1745510974474,17.15770934,1764.9,1764.5,5.66706641]
[1745510974680,11.4913498,1764.9,1764.5,5.66706641]
[1745510974912,5.66641385,1764.8,1764.4,5.66745229]
[1745510975121,5.66684174,1764.7,1764.4,5.66764368]
[1745510975320,11.33304915,1764.8,1764.4,5.66764368]
[1745510975523,5.66641385,1764.8,1764.4,5.66764368]
[1745510975820,5.66671637,1764.7,1764.4,5.66764368]
[1745510976028,5.66671637,1764.7,1764.3,11.38546842]
[1745510976225,5.66671637,1764.7,1764.4,5.66760315]
[1745510976400,5.66671637,1764.7,1764.3,6.85639335]
[1745510976587,5.66671637,1764.7,1764.3,6.8563366]
[1745510976782,5.66671637,1764.7,1764.3,12.52403113]
[1745510976996,5.66671637,1764.7,1764.3,6.85628188]
[1745510977193,8.66636446,1764.8,1764.3,0.05]
[1745510977427,5.66751455,1764.5,1764.0,5.7187668]
[1745510977631,5.66751455,1764.5,1763.9,5.009]
[1745510977632,5.66834088,1764.2,1763.8,5.71949269]
[1745510977785,5.66883523,1764.1,1763.7,5.66978448]
[1745510977979,5.66893942,1764.0,1763.7,5.66978448]
[1745510978493,5.66883523,1764.1,1763.7,5.66978448]
[1745510978695,0.56675146,1764.4,1763.7,5.6698985]
[1745510978904,5.8361,1764.5,1764.0,5.66861655]
[1745510979217,5.66765166,1764.4,1764.0,5.66861655]
[1745510979929,11.50361526,1764.5,1764.0,5.66861655]
[1745510980132,5.66787383,1764.4,1764.0,5.66861655]
[1745510980424,5.6679758,1764.3,1763.9,5.66897202]
[1745510980728,17.17116191,1764.5,1764.1,5.6685924]
[1745510981226,11.50358229,1764.5,1764.1,5.6685924]
[1745510981630,0.8271,1764.5,1764.3,5.66770471]
[1745510981811,9.42219092,1764.7,1764.3,5.66770471]
[1745510982023,10.93107118,1764.7,1764.3,5.66770471]
[1745510982227,10.93107118,1764.7,1764.2,5.71812669]
[1745510982538,3.7553,1764.7,1764.3,5.66797029]
[1745510982703,3.7553,1764.7,1764.5,5.66729867]
[1745510982903,3.0,1764.8,1764.5,5.66729867]
[1745510983122,3.0,1764.8,1764.4,5.66755047]
[1745510983436,3.0,1764.8,1764.5,5.66728474]
[1745510983640,3.0,1764.8,1764.4,5.66744204]
[1745510983814,3.0,1764.8,1764.4,6.23418624]
[1745510984134,3.0,1764.8,1764.5,5.66718243]
[1745510984636,11.43784115,1765.1,1764.7,5.66654362]
[1745510984815,3.0,1765.0,1764.7,5.66654362]
[1745510985010,3.0,1765.0,1764.7,5.66645918]
[1745510985402,3.0,1765.0,1764.8,5.66625268]
[1745510985609,0.7633,1765.1,1764.9,5.66588719]
[1745510985926,5.7709,1765.3,1764.9,6.90571818]
[1745510986128,5.7709,1765.3,1765.0,5.66553675]
[1745510986637,0.7619,1765.3,1764.9,5.71585518]
[1745510987007,0.7619,1765.3,1764.9,11.38166506]
[1745510987419,0.7619,1765.3,1765.0,5.66571742]
[1745510987743,0.7619,1765.3,1765.1,5.66540101]
[1745510987941,0.7619,1765.3,1765.0,5.66548542]
[1745510988145,0.7619,1765.3,1765.1,5.66532448]
[1745510988438,8.66431109,1765.5,1765.2,5.66507852]
[1745510988439,3.8307,1765.5,1765.2,5.66507852]
[1745510988616,9.49504549,1765.5,1765.1,5.66532448]
[1745510988941,9.49504549,1765.5,1765.0,6.23704061]
[1745510989536,5.66456053,1765.4,1765.0,6.23704061]
[1745510989734,5.66495826,1765.3,1764.8,5.66614762]
[1745510989935,5.66476746,1765.3,1764.9,5.66599761]
[1745510990135,0.8057,1765.1,1764.7,5.71651511]
[1745510990442,0.8057,1765.1,1764.7,5.71648505]
[1745510990606,6.47112359,1765.1,1764.7,11.38296853]
[1745510990812,6.47122942,1765.1,1764.8,1.13829685]
[1745510991232,5.66580642,1765.0,1764.8,1.13829685]
[1745510991440,5.66580642,1765.0,1764.6,5.66682565]
[1745510991946,5.66580642,1765.0,1764.6,11.33359727]
[1745510992242,5.66580642,1765.0,1764.6,11.33355281]
[1745510992742,5.66580642,1765.0,1764.6,11.33356844]
[1745510992942,5.66580642,1765.0,1764.6,12.46692528]
[1745510993311,9.4711068,1765.1,1764.7,5.66641462]
[1745510993721,5.66572276,1765.0,1764.6,6.8001663]
[1745510994238,5.66572276,1765.0,1764.6,12.46698393]
[1745510994551,5.66572276,1765.0,1764.6,6.8001663]
[1745510994732,5.66572276,1765.0,1764.6,12.46699111]
[1745510995451,5.66572276,1765.0,1764.6,12.4669554]
[1745510995649,5.66572276,1765.0,1764.6,6.80014594]
[1745510995954,5.66572276,1765.0,1764.7,5.6666807]
[1745510996350,5.66572276,1765.0,1764.6,6.80014594]
[1745510996964,5.66572276,1765.0,1764.6,6.80014417]
[1745510997178,5.66572276,1765.0,1764.6,1.13335684]
[1745510997474,5.66615869,1764.9,1764.5,5.66718238]
[1745510997682,0.7598,1764.8,1764.5,5.66707369]
[1745510998042,0.7598,1764.8,1764.4,5.71749814]
[1745510998281,6.42636537,1764.8,1764.4,6.80602592]
[1745510998571,0.7598,1764.8,1764.4,6.80601511]
[1745510998775,0.7598,1764.8,1764.5,5.66717866]
[1745510998974,6.43064318,1764.5,1764.0,0.46523166]
[1745510999157,6.43083464,1764.5,1764.0,0.05]
[1745510999345,5.66828988,1764.3,1763.9,0.623606]
[1745510999550,5.66835105,1764.2,1763.9,6.29286064]
[1745510999877,5.66835105,1764.2,1763.6,11.34009379]
[1745510999878,5.66878589,1764.1,1763.6,11.34009379]
[1745511000079,5.66878589,1764.1,1763.7,5.6698953]
[1745511000241,5.66878589,1764.1,1763.7,5.66988394]
[1745511000569,5.66906138,1764.0,1763.6,5.67006221]
[1745511000801,5.66878589,1764.1,1763.7,5.66980039]
[1745511000957,5.66878589,1764.1,1763.7,6.80378665]
[1745511001272,5.66878589,1764.1,1763.7,12.47346686]
[1745511001479,3.0,1764.1,1763.8,5.66951141]
[1745511001879,5.006,1764.4,1764.0,5.66864837]
[1745511002043,5.66770592,1764.4,1764.0,11.90426873]
[1745511002371,0.7832,1764.5,1764.0,0.56686484]
[1745511002580,0.7832,1764.5,1764.2,11.33612109]
[1745511002761,0.7832,1764.5,1764.3,5.66796048]
[1745511002961,0.7832,1764.5,1764.4,5.66764905]
[1745511003166,5.7817,1764.7,1764.4,6.80121]
[1745511003366,5.66729066,1764.6,1764.2,5.66817811]
[1745511003565,5.66743861,1764.5,1764.1,5.66837531]
[1745511003765,5.66729066,1764.6,1764.2,5.66805745]
[1745511004066,5.66729066,1764.6,1764.0,0.56686484]
[1745511004067,5.66730405,1764.6,1764.0,0.56686484]
[1745511004240,5.7817,1764.7,1764.0,0.56686484]
[1745511004445,5.66797254,1764.3,1764.0,6.23564364]
[1745511004656,5.66778695,1764.4,1764.0,6.23579185]
[1745511005082,5.66778695,1764.4,1764.0,6.23560085]
[1745511005296,5.66797621,1764.3,1764.0,0.56686484]
[1745511005601,6.47997457,1764.6,1764.2,5.66811065]
[1745511005805,6.47997457,1764.6,1764.2,6.23492172]
[1745511005985,12.1472432,1764.6,1764.2,6.23492172]
[1745511006190,5.66746999,1764.5,1764.2,0.56681107]
[1745511006369,3.8128,1764.6,1764.2,6.23503748]
[1745511006569,0.8128,1764.6,1764.3,6.29125444]
[1745511006790,5.66735573,1764.5,1764.3,0.62350375]
[1745511007376,5.66764905,1764.4,1764.0,6.23561683]
[1745511007605,5.66735573,1764.5,1764.1,5.66848722]
[1745511007807,6.47996462,1764.6,1764.3,5.66795993]
[1745511008114,6.47996462,1764.6,1764.2,5.72473236]
[1745511008713,5.66735194,1764.5,1764.2,5.72473236]
[1745511008936,0.8128,1764.6,1764.4,5.66751344]
[1745511009091,8.66608231,1764.9,1764.6,5.66679945]
[1745511009427,0.8149,1765.0,1764.2,6.85738605]
[1745511009624,6.4808171,1765.0,1764.6,5.66685538]
[1745511009795,5.6660688,1764.9,1764.5,5.66721085]
[1745511009983,6.48064861,1765.0,1764.4,5.6675507]
[1745511010190,5.66648013,1764.8,1764.5,5.66728316]
[1745511010418,5.66648013,1764.8,1764.5,0.56672832]
[1745511010988,5.66648013,1764.8,1764.3,12.02126532]
[1745511010989,5.66680979,1764.7,1764.3,12.02126532]
[1745511011201,5.66680979,1764.7,1764.4,5.66759177]
[1745511011409,5.66648013,1764.8,1764.4,5.66746301]
[1745511011623,5.66648013,1764.8,1764.4,5.66744911]
[1745511011830,3.8149,1765.0,1764.7,5.66650916]
[1745511012029,5.6661726,1764.9,1764.5,5.66732785]
[1745511012233,5.6661726,1764.9,1764.5,11.33447525]
[1745511012398,5.6661726,1764.9,1764.5,5.6671474]
[1745511012603,15.14676588,1765.0,1764.6,5.71683743]
[1745511012805,15.14675814,1765.0,1764.6,5.71683743]
[1745511013336,5.66607766,1764.9,1764.6,5.71683743]
[1745511013533,9.48075964,1765.0,1764.6,5.71683743]
[1745511013733,10.67255341,1765.1,1764.6,5.71683743]
[1745511013734,5.007,1765.1,1764.7,5.66657063]
[1745511013941,8.007,1765.1,1764.8,5.66619665]
[1745511014143,3.0,1765.1,1764.8,5.66619665]
[1745511014325,4.10930861,1765.2,1764.9,6.2324367]
[1745511014524,3.29570861,1765.2,1764.9,6.2324367]
[1745511015011,8.96091849,1765.2,1764.9,0.56661966]
[1745511015217,3.29570861,1765.2,1764.9,6.23253921]
[1745511015417,8.96091004,1765.2,1764.9,0.56661966]
[1745511015737,3.29570861,1765.2,1764.9,6.23260295]
[1745511016040,3.29570861,1765.2,1764.9,0.56661966]
[1745511016251,3.29570861,1765.2,1764.9,6.23236482]
[1745511016461,0.29570861,1765.2,1765.1,5.66540139]
[1745511016610,0.7519,1765.6,1765.0,0.62323648]
[1745511016810,6.41584233,1765.6,1765.2,5.66507835]
[1745511017106,3.0,1765.5,1765.2,5.66507835]
[1745511017305,3.0,1765.5,1765.2,5.66488306]
[1745511017546,3.0,1765.5,1765.2,5.66488279]
[1745511017844,6.41579132,1765.6,1765.2,5.66485845]
[1745511018141,0.7519,1765.6,1765.3,5.66465998]
[1745511018530,0.7519,1765.6,1765.3,11.32919958]
[1745511018906,5.006,1765.7,1765.4,5.66431438]
[1745511019315,5.006,1765.7,1765.5,5.66402597]
[1745511019503,0.8019,1765.8,1765.5,5.66393852]
[1745511020041,3.8019,1765.8,1765.5,11.32783563]
[1745511020243,0.8019,1765.8,1765.5,5.66389711]
[1745511020447,0.8019,1765.8,1765.2,0.61648585]
[1745511020448,6.46509332,1765.8,1765.2,0.61648585]
[1745511020751,5.66393772,1765.6,1765.2,11.94637825]
[1745511020919,5.66393772,1765.6,1765.3,5.66471977]
[1745511021257,6.31015323,1765.7,1765.3,5.66453773]
[1745511021450,0.8019,1765.8,1765.4,5.66428176]
[1745511021741,0.8019,1765.8,1765.5,5.66399572]
[1745511022241,6.46506511,1765.8,1765.5,5.66399572]
[1745511022644,0.8019,1765.8,1765.6,5.66363774]
[1745511022843,0.29557969,1765.9,1765.6,5.66363774]
[1745511023210,0.29557969,1765.9,1765.7,5.66347077]
[1745511023435,11.46747863,1766.0,1765.6,6.23500151]
[1745511023739,17.13029481,1766.0,1765.6,6.23500151]
[1745511024143,5.66284703,1765.9,1765.6,0.57136377]
[1745511024652,5.66284703,1765.9,1765.6,6.23513671]
[1745511024851,11.46747863,1766.0,1765.6,0.57136377]
[1745511025033,6.46247863,1766.0,1765.6,6.23514354]
[1745511025234,6.46247863,1766.0,1765.6,0.57136377]
[1745511025434,5.66298634,1765.9,1765.6,0.57136377]
[1745511025647,5.66298634,1765.9,1765.6,6.2351279]
[1745511026165,11.32607522,1765.9,1765.6,0.57136377]
[1745511026349,11.32606954,1765.9,1765.6,0.57136377]
[1745511026557,5.66298634,1765.9,1765.6,6.23509843]
[1745511026748,0.7998,1766.0,1765.7,5.66347306]
[1745511026930,3.7998,1766.0,1765.7,5.66347306]
[1745511027579,0.7998,1766.0,1765.7,6.90977364]
[1745511027734,3.0,1766.1,1765.8,5.66303897]
[1745511028073,8.66231987,1766.1,1765.7,5.66327916]
[1745511028226,8.66231987,1766.1,1765.7,6.7959667]
[1745511028748,5.66231987,1766.1,1765.7,6.79594642]
[1745511028945,5.66231987,1766.1,1765.7,5.66325888]
[1745511029340,11.32479767,1766.1,1765.7,5.66325888]
[1745511029630,5.66231987,1766.1,1765.7,5.66325888]
[1745511029829,5.66231987,1766.1,1765.7,5.66324796]
[1745511030657,5.66231987,1766.1,1765.7,11.32649456]
[1745511030890,5.66231987,1766.1,1765.7,6.79589606]
[1745511031159,6.4660182,1766.2,1765.8,5.66314599]
[1745511031567,12.12814264,1766.2,1765.8,5.66314599]
[1745511031860,12.12814264,1766.2,1765.7,12.45920508]
[1745511031861,5.6622151,1766.1,1765.7,12.45920508]
[1745511032158,5.6622151,1766.1,1765.7,6.79589606]
[1745511032368,5.6622151,1766.1,1765.7,12.45915559]
[1745511032527,5.6622151,1766.1,1765.8,5.66308856]
[1745511032726,5.6622151,1766.1,1765.7,6.79589606]
[1745511033061,5.6622151,1766.1,1765.7,5.6632466]
[1745511034468,5.66219353,1766.1,1765.6,5.66361174]
[1745511034666,0.8196,1765.9,1765.6,5.66358433]
[1745511034873,0.8196,1765.9,1765.6,11.32721318]
[1745511035235,0.8196,1765.9,1765.6,5.66358433]
[1745511035547,0.8196,1765.9,1765.7,5.66325872]
[1745511035880,6.46495403,1766.1,1765.7,11.32651744]
[1745511036036,6.46495403,1766.1,1765.8,5.66314407]
[1745511036783,6.46495403,1766.1,1765.7,5.66325872]
[1745511037063,5.6626731,1766.0,1765.7,5.66325872]
[1745511037268,3.8026,1766.1,1765.7,1.24647009]
[1745511037471,6.45119113,1765.6,1765.2,6.23136383]
[1745511037659,5.66420724,1765.5,1765.2,6.23136383]
[1745511037964,6.45119113,1765.6,1765.2,11.89625208]
[1745511038185,0.7872,1765.6,1765.4,5.66441558]
[1745511038349,6.42360283,1765.8,1765.5,5.66397377]
[1745511038536,6.42360283,1765.8,1765.4,5.66441558]
[1745511038737,6.42360283,1765.8,1765.4,11.32868399]
[1745511038986,6.42360283,1765.8,1765.4,5.66426841]
[1745511039184,12.08702517,1765.8,1765.4,6.91611553]
[1745511039480,6.42360283,1765.8,1765.4,6.91611553]
[1745511039696,12.08699514,1765.8,1765.4,6.91611553]
[1745511039979,5.66357835,1765.7,1765.4,6.91611553]
[1745511040158,5.66351487,1765.7,1765.4,6.91611553]
[1745511040366,12.08706503,1765.8,1765.4,6.91611553]
[1745511040736,6.42360283,1765.8,1765.4,12.58034839]
[1745511041083,6.42360283,1765.8,1765.5,6.92209473]
[1745511041579,0.7604,1765.8,1765.5,6.92209473]
[1745511041783,0.7604,1765.8,1765.6,5.66376299]
[1745511042187,3.0,1765.9,1765.7,5.66344743]
[1745511042385,9.42913039,1766.0,1765.6,5.66357993]
[1745511042718,9.42913039,1766.0,1765.6,6.92213433]
[1745511042899,9.42913039,1766.0,1765.6,12.58572465]
[1745511043074,0.29550256,1765.9,1765.6,6.92213433]
[1745511043275,5.95845144,1765.9,1765.6,1.2585544]
[1745511043488,5.95845144,1765.9,1765.5,11.32779721]
[1745511043884,0.29550256,1765.9,1765.6,5.66374892]
[1745511044111,5.95852526,1765.9,1765.5,11.32778664]
[1745511044299,5.95852526,1765.9,1765.5,5.66388619]
[1745511044476,5.66317363,1765.8,1765.5,5.66388619]
[1745511044678,5.66317363,1765.8,1765.5,6.80170047]
[1745511045941,5.66317363,1765.8,1765.5,1.13781428]
[1745511046119,5.66317363,1765.8,1765.3,5.001]
[1745511046120,5.66379175,1765.7,1765.3,5.001]
[1745511046288,5.66379175,1765.7,1765.4,5.66441385]
[1745511046616,6.4386683,1765.8,1765.5,5.66398926]
[1745511046910,5.66348655,1765.7,1765.4,5.66441472]
[1745511047112,6.4386683,1765.8,1765.4,5.66424335]
[1745511047284,6.4386683,1765.8,1765.4,6.79712894]
[1745511047489,6.43869327,1765.8,1765.5,5.66392221]
[1745511047815,6.43869327,1765.8,1765.4,6.79711857]
[1745511048113,5.66462521,1765.4,1765.0,0.05]
[1745511048281,5.66491653,1765.3,1765.0,5.71557912]
[1745511048481,5.66471346,1765.4,1765.1,5.66539353]
[1745511048774,5.66471346,1765.4,1765.0,5.71557912]
[1745511048989,5.66471346,1765.4,1765.1,6.2368739]
[1745511049312,6.47522909,1765.7,1765.3,5.6646178]
[1745511049514,12.13895427,1765.7,1765.3,5.6646178]
[1745511049924,6.47522909,1765.7,1765.3,5.6646178]
[1745511050099,6.47522909,1765.7,1765.3,11.32921961]
[1745511050300,6.47522909,1765.7,1765.3,12.46214157]
[1745511050624,0.8116,1765.7,1765.4,5.6641407]
[1745511050825,6.47518977,1765.7,1765.4,5.6641407]
[1745511051022,6.47518977,1765.7,1765.3,1.13292196]
[1745511051227,5.66394154,1765.6,1765.3,1.13292196]
[1745511051521,0.7822,1765.4,1765.2,5.66506616]
[1745511052732,0.7822,1765.4,1765.1,6.23673254]
[1745511053028,5.66393722,1765.6,1765.2,5.66496024]
[1745511053029,0.757,1765.6,1765.2,5.66496024]
[1745511053209,6.42093593,1765.6,1765.3,5.66472974]
[1745511054015,12.08498564,1765.6,1765.2,5.66490619]
[1745511054214,0.757,1765.6,1765.2,6.95606211]
[1745511054414,0.757,1765.6,1765.3,5.66447242]
[1745511055730,0.757,1765.6,1765.4,5.66427637]
[1745511056129,5.001,1765.8,1765.5,5.66411781]
[1745511056434,3.7531,1765.8,1765.6,6.23005905]
[1745511057109,3.7531,1765.8,1765.6,0.56641178]
[1745511058234,3.7531,1765.8,1765.5,5.66391138]
[1745511059652,3.7531,1765.8,1765.4,5.66424354]
[1745511059653,0.7531,1765.8,1765.4,5.66424354]
[1745511059818,6.41643871,1765.8,1765.4,5.66422243]
[1745511060025,6.41643871,1765.8,1765.4,11.32848606]
[1745511060319,6.41643871,1765.8,1765.4,5.66422243]
[1745511060623,5.66368086,1765.7,1765.3,5.71457853]
[1745511060801,5.66368086,1765.7,1765.2,6.956092]
[1745511061000,6.46747911,1765.6,1765.2,11.3297686]
[1745511061200,6.46747911,1765.6,1765.2,5.66484873]
[1745511061405,6.46747911,1765.6,1765.3,5.66474583]
[1745511061605,1.0990421,1765.6,1765.3,5.66474583]
[1745511061843,6.76298643,1765.6,1765.2,5.66484873]
[1745511062010,6.76298643,1765.6,1765.3,0.56648487]
[1745511062335,1.0990421,1765.6,1765.4,5.66425902]
[1745511063536,0.2955421,1765.6,1765.4,5.66425902]
[1745511063745,0.2955421,1765.6,1765.5,5.66411781]
[1745511065064,0.2955421,1765.6,1765.5,6.72412842]
[1745511065340,0.2955421,1765.6,1765.5,8.01960119]
[1745511065534,0.2955421,1765.6,1765.5,7.00959058]
[1745511065918,6.45378933,1766.2,1765.8,5.66291028]
[1745511066245,6.74927046,1766.2,1765.8,5.66291028]
[1745511066421,6.74927046,1766.2,1765.8,6.89653729]
[1745511066845,5.66219358,1766.1,1765.8,6.89653729]
[1745511067143,5.66239984,1766.1,1765.8,1.23362701]
[1745511067349,5.66239984,1766.1,1765.8,5.66314504]
[1745511068117,6.74935797,1766.2,1765.8,5.66314504]
[1745511069247,12.41148615,1766.2,1765.8,5.66314504]
[1745511069665,5.66224981,1766.1,1765.7,5.66331082]
[1745511069832,5.66224981,1766.1,1765.7,11.32658533]
[1745511070032,5.66224981,1766.1,1765.7,6.79593304]
[1745511070350,5.66224981,1766.1,1765.7,6.79591205]
[1745511070548,6.41723298,1766.0,1765.6,5.66372435]
[1745511070966,6.41723298,1766.0,1765.6,11.32729256]
[1745511071116,6.41723298,1766.0,1765.6,5.66356821]
[1745511071317,5.66369962,1765.7,1765.3,5.71464151]
[1745511071630,5.66369962,1765.7,1765.3,5.71456745]
[1745511071843,5.66369962,1765.7,1765.3,5.77120568]
[1745511072247,5.66369962,1765.7,1765.3,11.37909662]
[1745511072467,5.66369962,1765.7,1765.4,5.66440484]
[1745511072751,0.8233,1765.6,1765.3,5.66473183]
[1745511073058,5.66464355,1765.4,1765.0,5.71558112]
[1745511073392,5.66465706,1765.4,1765.0,5.66550822]
[1745511073540,6.48759582,1765.5,1765.1,5.66523448]
[1745511073739,12.15195493,1765.5,1765.1,6.23175793]
[1745511073947,11.3291325,1765.4,1765.0,5.66559152]
[1745511074281,5.6644431,1765.4,1765.0,5.66559152]
[1745511074479,12.15197118,1765.5,1765.1,5.66508268]
[1745511074634,6.48760632,1765.5,1765.1,5.66508268]
[1745511075063,6.48760632,1765.5,1765.2,5.66507562]
[1745511075265,0.8233,1765.5,1765.3,5.66473252]
[1745511075668,0.8233,1765.5,1765.2,6.84809145]
[1745511076274,0.8233,1765.5,1765.2,5.66507562]
[1745511076782,6.48758071,1765.5,1765.1,6.72527445]
[1745511076983,6.48758071,1765.5,1765.1,6.7251767]
[1745511077278,0.8233,1765.5,1765.2,5.66497554]
[1745511078154,6.48758439,1765.5,1765.1,6.7252228]
[1745511078354,6.48758439,1765.5,1765.2,5.66507028]
[1745511078946,0.8233,1765.5,1765.2,5.66507028]
[1745511079141,6.48955391,1765.7,1765.3,6.67467098]
[1745511079361,12.15315231,1765.7,1765.3,6.67467098]
[1745511079685,6.48940961,1765.7,1765.3,7.90851964]
[1745511080460,4.999,1765.8,1765.5,5.66401755]
[1745511080761,5.66338253,1765.8,1765.4,5.71431673]
[1745511080961,5.66338253,1765.8,1765.4,11.37858075]
[1745511081262,5.66338253,1765.8,1765.5,1.13785808]
[1745511081483,5.66354167,1765.7,1765.4,5.66423228]
[1745511082196,5.95890884,1765.8,1765.4,5.66423228]
[1745511083695,5.66365619,1765.7,1765.3,13.57317241]
[1745511083860,5.95890884,1765.8,1765.4,5.66436381]
[1745511084195,5.66353717,1765.7,1765.4,5.66436381]
[1745511084395,5.66353717,1765.7,1765.4,7.0216538]
[1745511084703,5.95890884,1765.8,1765.4,12.68588405]
[1745511085184,0.29552631,1765.8,1765.5,5.66385693]
[1745511085386,0.29552631,1765.8,1765.5,11.3277669]
[1745511085689,5.95870929,1765.8,1765.5,5.66385693]
[1745511085890,0.29552631,1765.8,1765.5,6.93256873]
[1745511086092,0.29552631,1765.8,1765.6,5.66367984]
[1745511086292,0.29552631,1765.8,1765.6,5.71367984]
[1745511086494,0.29552631,1765.8,1765.7,6.67348685]
[1745511086701,5.66198588,1766.2,1765.7,6.67348685]
[1745511086702,4.997,1766.3,1766.0,5.66251415]
[1745511086910,11.43480953,1766.3,1766.0,5.66251415]
[1745511087197,0.29547434,1766.1,1766.0,6.27854297]
[1745511087397,0.29547434,1766.1,1766.0,7.28855358]
[1745511089108,6.44041596,1766.5,1766.1,5.66210778]
[1745511089270,6.73586197,1766.5,1766.1,5.66210778]
[1745511089475,6.73586197,1766.5,1766.1,5.66199827]
[1745511089680,6.73586197,1766.5,1766.1,5.66197454]
[1745511089998,6.73586197,1766.5,1766.1,6.3907982]
[1745511090602,6.44041596,1766.5,1766.1,12.05276127]
[1745511090786,6.44041596,1766.5,1766.1,6.39078673]
[1745511091904,0.7795,1766.5,1766.2,5.66184509]
[1745511092272,0.7795,1766.5,1766.1,6.39078673]
[1745511092475,5.6620275,1766.2,1765.8,5.6629984]
[1745511092686,0.78,1766.1,1765.8,5.6629984]
[1745511093192,0.78,1766.1,1765.8,5.66297353]
[1745511093376,0.78,1766.1,1765.9,5.66280504]
[1745511093582,0.7866,1766.3,1766.0,5.66237023]
[1745511094103,6.44819723,1766.3,1765.9,5.66264434]
[1745511094309,6.44819723,1766.3,1765.9,1.13256225]
[1745511094606,5.66189277,1766.2,1765.9,1.13256225]
[1745511095063,5.66189277,1766.2,1765.8,11.32588655]
[1745511095064,11.32400764,1766.2,1765.8,5.66293296]
[1745511095265,5.66231213,1766.1,1765.8,5.66313341]
[1745511095770,0.8074,1766.0,1765.7,5.66325645]
[1745511096172,6.47004702,1766.0,1765.6,11.32719675]